fUSD/lending_fUSD_20260308
["ID","MTS","AMOUNT","RATE_DAILY","PERIOD"]
[407978719,1772959642457,-621.78829552,0.00049999,41]
[407978720,1772959642490,-644.79446246,0.00049999,44]
[407978721,1772959642524,-668.65185757,0.00049999,45]
[407978722,1772959642556,-151.0,0.00049999,30]
[407978723,1772959642588,-151.0,0.00049999,35]
[407978724,1772959642620,-151.0,0.00049999,36]
[407978725,1772959642651,-151.0,0.00049999,30]
[407978726,1772959642682,-201.10556316,0.00049999,30]
[407978727,1772959642719,-156.587,0.00049999,35]
[407978728,1772959642750,-500.0,0.00050185,60]
[407978729,1772959642780,-549.74,0.00050459,60]
[407978730,1772959642810,-3491596.53296716,0.00051497,30]
[407978731,1772959642843,-1000000.0,0.000515,89]
[407978732,1772959642876,-1000000.0,0.000515,97]
[407978733,1772959642905,-1198.5592883,0.000515,120]
[407978734,1772959642936,-1077.6846721,0.000515,30]
[407978735,1772959642968,-3498921.48158908,0.000515,120]
[407978736,1772959645859,-203.60099904,0.00049999,36]
[407978737,1772959645892,-200.0,0.00049999,30]
[407978738,1772959645927,-200.0,0.00049999,35]
[407978739,1772959645963,-1501078.51841092,0.000515,120]
[407978740,1772959645995,-5000000.0,0.000515,120]
[407978741,1772959646027,-2498317.88059004,0.000515,120]
[407978742,1772959653612,-200.0,0.00049999,36]
[407978743,1772959653648,-200.0,0.00049999,37]
[407978744,1772959653680,-500.0,0.00049999,30]
[407978745,1772959653714,-500.0,0.00049999,35]
[407978746,1772959653746,-500.0,0.00049999,36]
[407978747,1772959653780,-500.0,0.00049999,37]
[407978748,1772959653813,-500.0,0.00049999,38]
[407978749,1772959653843,-500.0,0.00049999,40]
[407978750,1772959653875,-1466.52045096,0.0005,120]
[407978751,1772959653908,-2501682.11940996,0.000515,120]
[407978752,1772959653942,-1852964.0,0.000515,50]
[407978753,1772959653974,-154.0,0.000515,120]
[407978754,1772959654004,-152.0,0.000515,120]
[407978755,1772959654034,-6128.70602779,0.000515,30]
[407978756,1772959654067,-10000.0,0.00051507,120]
[407978757,1772959654098,-10000.0,0.00051507,120]
[407978758,1772959654129,-10000.0,0.00051507,120]
[407978759,1772959654160,-150.0,0.00051524,120]
[407978760,1772959654190,-1042.0,0.00051574,120]
[407978761,1772959654220,-619.0,0.00051574,120]
[407978762,1772959654251,-500.0,0.00051609,60]
[407978763,1772959654281,-500.0,0.00051609,60]
[407978764,1772959654315,-1000000.0,0.000517,90]
[407978765,1772959654348,-1000000.0,0.000517,95]
[407978766,1772959654384,-3869.0,0.000517,120]
[407978767,1772959654418,-10000.0,0.00051781,120]
[407978768,1772959654450,-10000.0,0.00051781,120]
[407978769,1772959654484,-10000.0,0.00051781,120]
[407978770,1772959654516,-10000.0,0.00051781,120]
[407978771,1772959654546,-10000.0,0.00051781,120]
[407978772,1772959654578,-500.0,0.00051781,120]
[407978773,1772959654612,-500.0,0.00051781,120]
[407978774,1772959654644,-500.0,0.00051781,120]
[407978775,1772959654675,-500.0,0.00051781,120]
[407978776,1772959654706,-500.0,0.00051781,120]
[407978777,1772959654738,-500.0,0.00051781,120]
[407978778,1772959654771,-500.0,0.00051781,120]
[407978779,1772959654801,-500.0,0.00051781,120]
[407978780,1772959654835,-500.0,0.00051781,120]
[407978781,1772959654867,-500.0,0.00051781,120]
[407978782,1772959654904,-500.0,0.00051781,120]
[407978783,1772959654946,-500.0,0.00051781,120]
[407978784,1772959654983,-500.0,0.00051781,120]
[407978785,1772959655016,-500.0,0.00051781,120]
[407978786,1772959655049,-500.0,0.00051781,120]
[407978787,1772959655082,-500.0,0.00051781,120]
[407978788,1772959655115,-500.0,0.00051781,120]
[407978789,1772959655148,-500.0,0.00051781,120]
[407978790,1772959655182,-500.0,0.00051781,120]
[407978791,1772959655215,-500.0,0.00051781,120]
[407978792,1772959655252,-500.0,0.00051781,120]
[407978793,1772959655284,-500.0,0.00051781,120]
[407978794,1772959655317,-500.0,0.00051781,120]
[407978795,1772959655348,-500.0,0.00051781,120]
[407978796,1772959655379,-500.0,0.00051781,120]
[407978797,1772959655414,-500.0,0.00051781,120]
[407978798,1772959655449,-500.0,0.00051781,120]
[407978799,1772959655483,-500.0,0.00051781,120]
[407978800,1772959655516,-500.0,0.00051781,120]
[407978801,1772959655550,-500.0,0.00051781,120]
[407978802,1772959655583,-500.0,0.00051781,120]
[407978803,1772959655614,-500.0,0.00051781,120]
[407978804,1772959655647,-500.0,0.00051781,120]
[407978805,1772959655679,-500.0,0.00051781,120]
[407978806,1772959655712,-500.0,0.00051781,120]
[407978807,1772959655745,-500.0,0.00051781,120]
[407978808,1772959655776,-500.0,0.00051781,120]
[407978809,1772959655811,-500.0,0.00051781,120]
[407978810,1772959655841,-500.0,0.00051781,120]
[407978811,1772959655873,-500.0,0.00051781,120]
[407978812,1772959655905,-500.0,0.00051781,120]
[407978813,1772959655937,-500.0,0.00051781,120]
[407978814,1772959655969,-500.0,0.00051781,120]
[407978815,1772959656001,-500.0,0.00051781,120]
[407978816,1772959656031,-500.0,0.00051781,120]
[407978817,1772959656062,-500.0,0.00051781,120]
[407978818,1772959656102,-500.0,0.00051781,120]
[407978819,1772959656139,-500.0,0.00051781,120]
[407978820,1772959656172,-500.0,0.00051781,120]
[407978821,1772959656411,-500.0,0.00051781,120]
[407978822,1772959656447,-500.0,0.00051781,120]
[407978823,1772959656485,-500.0,0.00051781,120]
[407978824,1772959656520,-500.0,0.00051781,120]
[407978825,1772959656555,-500.0,0.00051781,120]
[407978826,1772959656589,-500.0,0.00051781,120]
[407978827,1772959656625,-500.0,0.00051781,120]
[407978828,1772959656659,-500.0,0.00051781,120]
[407978829,1772959656691,-500.0,0.00051781,120]
[407978830,1772959656727,-500.0,0.00051781,120]
[407978831,1772959656759,-500.0,0.00051781,120]
[407978832,1772959656792,-500.0,0.00051781,120]
[407978833,1772959656823,-500.0,0.00051781,120]
[407978834,1772959656854,-500.0,0.00051781,120]
[407978835,1772959656885,-500.0,0.00051781,120]
[407978836,1772959656917,-500.0,0.00051781,120]
[407978837,1772959656948,-500.0,0.00051781,120]
[407978838,1772959656979,-500.0,0.00051781,120]
[407978839,1772959657014,-500.0,0.00051781,120]
[407978840,1772959657044,-500.0,0.00051781,120]
[407978841,1772959657075,-500.0,0.00051781,120]
[407978842,1772959657108,-500.0,0.00051781,120]
[407978843,1772959657140,-500.0,0.00051781,120]
[407978844,1772959657173,-500.0,0.00051781,120]
[407978845,1772959657204,-500.0,0.00051781,120]
[407978846,1772959657238,-500.0,0.00051781,120]
[407978847,1772959657270,-500.0,0.00051781,120]
[407978848,1772959657307,-500.0,0.00051781,120]
[407978849,1772959657341,-500.0,0.00051781,120]
[407978850,1772959657375,-500.0,0.00051781,120]
[407978851,1772959657408,-500.0,0.00051781,120]
[407978852,1772959657441,-500.0,0.00051781,120]
[407978853,1772959657475,-500.0,0.00051781,120]
[407978854,1772959657510,-500.0,0.00051781,120]
[407978855,1772959657542,-500.0,0.00051781,120]
[407978856,1772959657574,-500.0,0.00051781,120]
[407978857,1772959657605,-500.0,0.00051781,120]
[407978858,1772959657635,-500.0,0.00051781,120]
[407978859,1772959657666,-500.0,0.00051781,120]
[407978860,1772959657699,-500.0,0.00051781,120]
[407978861,1772959657730,-500.0,0.00051781,120]
[407978862,1772959657762,-500.0,0.00051781,120]
[407978863,1772959657793,-500.0,0.00051781,120]
[407978864,1772959657824,-500.0,0.00051781,120]
[407978865,1772959657857,-500.0,0.00051781,120]
[407978866,1772959657888,-500.0,0.00051781,120]
[407978867,1772959657919,-500.0,0.00051781,120]
[407978868,1772959657951,-500.0,0.00051781,120]
[407978869,1772959657982,-500.0,0.00051781,120]
[407978870,1772959658013,-500.0,0.00051781,120]
[407978871,1772959658045,-500.0,0.00051781,120]
[407978872,1772959658079,-500.0,0.00051781,120]
[407978873,1772959658113,-500.0,0.00051781,120]
[407978874,1772959658144,-827.0,0.00051781,120]
[407978875,1772959658176,-500.0,0.00051781,120]
[407978876,1772959658208,-500.0,0.00051781,120]
[407978877,1772959658240,-500.0,0.00051781,120]
[407978878,1772959658272,-500.0,0.00051781,120]
[407978879,1772959658303,-500.0,0.00051781,120]
[407978880,1772959658335,-500.0,0.00051781,120]
[407978881,1772959658366,-500.0,0.00051781,120]
[407978882,1772959658397,-500.0,0.00051781,120]
[407978883,1772959658428,-500.0,0.00051781,120]
[407978884,1772959658460,-500.0,0.00051781,120]
[407978885,1772959658492,-500.0,0.00051781,120]
[407978886,1772959658525,-500.0,0.00051781,120]
[407978887,1772959658559,-500.0,0.00051781,120]
[407978888,1772959658591,-500.0,0.00051781,120]
[407978889,1772959658621,-500.0,0.00051781,120]
[407978890,1772959658651,-500.0,0.00051781,120]
[407978891,1772959658682,-500.0,0.00051781,120]
[407978892,1772959658714,-500.0,0.00051781,120]
[407978893,1772959658745,-500.0,0.00051781,120]
[407978894,1772959658776,-500.0,0.00051781,120]
[407978895,1772959658805,-500.0,0.00051781,120]
[407978896,1772959658834,-500.0,0.00051781,120]
[407978897,1772959658864,-500.0,0.00051781,120]
[407978898,1772959658893,-500.0,0.00051781,120]
[407978899,1772959658923,-500.0,0.00051781,120]
[407978900,1772959658953,-500.0,0.00051781,120]
[407978901,1772959658983,-500.0,0.00051781,120]
[407978902,1772959659012,-500.0,0.00051781,120]
[407978903,1772959659042,-500.0,0.00051781,120]
[407978904,1772959659077,-500.0,0.00051781,120]
[407978905,1772959659115,-500.0,0.00051781,120]
[407978906,1772959659148,-500.0,0.00051781,120]
[407978907,1772959659181,-500.0,0.00051781,120]
[407978908,1772959659217,-500.0,0.00051781,120]
[407978909,1772959659253,-500.0,0.00051781,120]
[407978910,1772959659293,-500.0,0.00051781,120]
[407978911,1772959659331,-500.0,0.00051781,120]
[407978912,1772959659365,-500.0,0.00051781,120]
[407978913,1772959659399,-500.0,0.00051781,120]
[407978914,1772959659436,-500.0,0.00051781,120]
[407978915,1772959659471,-500.0,0.00051781,120]
[407978916,1772959659507,-500.0,0.00051781,120]
[407978917,1772959659544,-500.0,0.00051781,120]
[407978918,1772959659579,-500.0,0.00051781,120]
[407978919,1772959659614,-500.0,0.00051781,120]
[407978920,1772959659649,-500.0,0.00051781,120]
[407978921,1772959659685,-500.0,0.00051781,120]
[407978922,1772959659722,-500.0,0.00051781,120]
[407978923,1772959659756,-500.0,0.00051781,120]
[407978924,1772959659790,-500.0,0.00051781,120]
[407978925,1772959659825,-500.0,0.00051781,120]
[407978926,1772959659863,-500.0,0.00051781,120]
[407978927,1772959659899,-500.0,0.00051781,120]
[407978928,1772959659933,-500.0,0.00051781,120]
[407978929,1772959659965,-500.0,0.00051781,120]
[407978930,1772959659998,-500.0,0.00051781,120]
[407978931,1772959660034,-500.0,0.00051781,120]
[407978932,1772959660067,-500.0,0.00051781,120]
[407978933,1772959660099,-500.0,0.00051781,120]
[407978934,1772959660133,-500.0,0.00051781,120]
[407978935,1772959660171,-500.0,0.00051781,120]
[407978936,1772959660203,-500.0,0.00051781,120]
[407978937,1772959660236,-500.0,0.00051781,120]
[407978938,1772959660271,-500.0,0.00051781,120]
[407978939,1772959660307,-500.0,0.00051781,120]
[407978940,1772959660344,-500.0,0.00051781,120]
[407978941,1772959660379,-500.0,0.00051781,120]
[407978942,1772959660413,-500.0,0.00051781,120]
[407978943,1772959660448,-500.0,0.00051781,120]
[407978944,1772959660483,-500.0,0.00051781,120]
[407978945,1772959660518,-500.0,0.00051781,120]
[407978946,1772959660551,-500.0,0.00051781,120]
[407978947,1772959660585,-500.0,0.00051781,120]
[407978948,1772959660620,-500.0,0.00051781,120]
[407978949,1772959660659,-500.0,0.00051781,120]
[407978950,1772959660701,-500.0,0.00051781,120]
[407978951,1772959660740,-500.0,0.00051781,120]
[407978952,1772959660778,-500.0,0.00051781,120]
[407978953,1772959660812,-500.0,0.00051781,120]
[407978954,1772959660846,-500.0,0.00051781,120]
[407978955,1772959660879,-500.0,0.00051781,120]
[407978956,1772959660914,-500.0,0.00051781,120]
[407978957,1772959660949,-500.0,0.00051781,120]
[407978958,1772959660987,-500.0,0.00051781,120]
[407978959,1772959661021,-500.0,0.00051781,120]
[407978960,1772959661055,-500.0,0.00051781,120]
[407978961,1772959661090,-500.0,0.00051781,120]
[407978962,1772959661133,-500.0,0.00051781,120]
[407978963,1772959661169,-500.0,0.00051781,120]
[407978964,1772959661201,-500.0,0.00051781,120]
[407978965,1772959661232,-500.0,0.00051781,120]
[407978966,1772959661263,-500.0,0.00051781,120]
[407978967,1772959661294,-500.0,0.00051781,120]
[407978968,1772959661324,-500.0,0.00051781,120]
[407978969,1772959661354,-500.0,0.00051781,120]
[407978970,1772959661385,-500.0,0.00051781,120]
[407978971,1772959661416,-500.0,0.00051781,120]
[407978972,1772959661447,-500.0,0.00051781,120]
[407978973,1772959661478,-500.0,0.00051781,120]
[407978974,1772959661510,-500.0,0.00051781,120]
[407978975,1772959661542,-500.0,0.00051781,120]
[407978976,1772959661573,-500.0,0.00051781,120]
[407978977,1772959661604,-500.0,0.00051781,120]
[407978978,1772959661635,-500.0,0.00051781,120]
[407978979,1772959661665,-500.0,0.00051781,120]
[407978980,1772959661696,-997.0,0.00051781,120]
[407978981,1772959661730,-500.0,0.00051781,120]
[407978982,1772959661762,-500.0,0.00051781,120]
[407978983,1772959661795,-500.0,0.00051781,120]
[407978984,1772959661825,-500.0,0.00051781,120]
[407978985,1772959661855,-500.0,0.00051781,120]
[407978986,1772959661887,-500.0,0.00051781,120]
[407978987,1772959661918,-500.0,0.00051781,120]
[407978988,1772959662233,-500.0,0.00051781,120]
[407978989,1772959662271,-500.0,0.00051781,120]
[407978990,1772959662305,-500.0,0.00051781,120]
[407978991,1772959662338,-500.0,0.00051781,120]
[407978992,1772959662369,-500.0,0.00051781,120]
[407978993,1772959662401,-500.0,0.00051781,120]
[407978994,1772959662434,-500.0,0.00051781,120]
[407978995,1772959662464,-500.0,0.00051781,120]
[407978996,1772959662495,-500.0,0.00051781,120]
[407978997,1772959662525,-500.0,0.00051781,120]
[407978998,1772959662556,-500.0,0.00051781,120]
[407978999,1772959662589,-500.0,0.00051781,120]
[407979000,1772959662623,-500.0,0.00051781,120]
[407979001,1772959662657,-500.0,0.00051781,120]
[407979002,1772959662691,-500.0,0.00051781,120]
[407979003,1772959662726,-500.0,0.00051781,120]
[407979004,1772959662760,-500.0,0.00051781,120]
[407979005,1772959662794,-500.0,0.00051781,120]
[407979006,1772959662825,-500.0,0.00051781,120]
[407979007,1772959662857,-500.0,0.00051781,120]
[407979008,1772959662889,-500.0,0.00051781,120]
[407979009,1772959662920,-500.0,0.00051781,120]
[407979010,1772959662951,-512.0,0.00051781,120]
[407979011,1772959662983,-500.0,0.00051781,120]
[407979012,1772959663015,-500.0,0.00051781,120]
[407979013,1772959663046,-500.0,0.00051781,120]
[407979014,1772959663076,-500.0,0.00051781,120]
[407979015,1772959663105,-500.0,0.00051781,120]
[407979016,1772959663135,-500.0,0.00051781,120]
[407979017,1772959663165,-500.0,0.00051781,120]
[407979018,1772959663195,-500.0,0.00051781,120]
[407979019,1772959663224,-500.0,0.00051781,120]
[407979020,1772959663254,-500.0,0.00051781,120]
[407979021,1772959663284,-500.0,0.00051781,120]
[407979022,1772959663313,-500.0,0.00051781,120]
[407979023,1772959663343,-500.0,0.00051781,120]
[407979024,1772959663376,-500.0,0.00051781,120]
[407979025,1772959663407,-500.0,0.00051781,120]
[407979026,1772959663439,-500.0,0.00051781,120]
[407979027,1772959663470,-500.0,0.00051781,120]
[407979028,1772959663503,-500.0,0.00051781,120]
[407979029,1772959663536,-500.0,0.00051781,120]
[407979030,1772959663570,-500.0,0.00051781,120]
[407979031,1772959663603,-500.0,0.00051781,120]
[407979032,1772959663635,-500.0,0.00051781,120]
[407979033,1772959663666,-500.0,0.00051781,120]
[407979034,1772959663697,-508.41092498,0.00051888,120]
[407979035,1772959663728,-538.42275147,0.000519,60]
[407979036,1772959663758,-1509.16752876,0.000519,30]
[407979037,1772959663790,-2632.05,0.000519,120]
[407979038,1772959663820,-150.0,0.0005192,120]
[407979039,1772959663849,-12000.0,0.00051949,120]
[407979040,1772959663879,-8120.40402853,0.0005195,120]
[407979041,1772959663908,-500.0,0.00051964,120]
[407979042,1772959663938,-1199.0,0.0005198,110]
[407979043,1772959663968,-1000.0,0.00051999,120]
[407979044,1772959663997,-465.00008698,0.00051999,120]
[407979045,1772959664028,-50000.0,0.00052,100]
[407979046,1772959664059,-34770.42449,0.00052,54]
[407979047,1772959664090,-2238.29174777,0.00052,120]
[407979048,1772959664124,-2000000.0,0.00052,75]
[407979049,1772959664157,-299905.4825528,0.00052,76]
[407979050,1772959676329,-199.21,0.000343,30]
[407979051,1772959676370,-314.83,0.00036,30]
[407979052,1772959676413,-153.36670001,0.00049839,120]
[407979053,1772959676451,-500.0,0.00049999,41]
[407979054,1772959676487,-500.0,0.00049999,44]
[407979055,1772959676527,-500.0,0.00049999,45]
[407979056,1772959676568,-1700094.5174472,0.00052,76]
[407979057,1772959676608,-2000000.0,0.00052,77]
[407979058,1772959676646,-2000000.0,0.00052,78]
[407979059,1772959676682,-2000000.0,0.00052,79]
[407979060,1772959676718,-44000.0,0.00052,90]
[407979061,1772959676750,-37400.0,0.00052,120]
[407979062,1772959676781,-175.5119828,0.00052,120]
[407979063,1772959676812,-364.01613315,0.00052,120]
[407979064,1772959676844,-1228.91377084,0.00052,120]
[407979065,1772959676881,-1269.85146077,0.00052,120]
[407979066,1772959676913,-150.0,0.00052,120]
[407979067,1772959676944,-651.94682737,0.00052,120]
[407979068,1772959677103,-1759.08694196,0.00052,120]
[407979069,1772959677140,-8698.28497141,0.00052,60]
[407979070,1772959677176,-2133.98131851,0.00052,30]
[407979071,1772959677210,-2011.3746107,0.00052,99]
[407979072,1772959677245,-5000.0,0.00052,120]
[407979073,1772959677280,-400.02467003,0.00052,120]
[407979074,1772959677320,-4000.0,0.00052,120]
[407979075,1772959677358,-183.6540583,0.00052,30]
[407979076,1772959677399,-1000000.0,0.00052,86]
[407979077,1772959677444,-188311.42910695,0.00052,88]
[407979078,1772959692018,-163.9,0.000496,30]
[407979079,1772959692076,-230.80454189,0.00049999,120]
[407979080,1772959692116,-500.0,0.00050256,60]
[407979081,1772959692153,-500.0,0.00051352,60]
[407979082,1772959692189,-500.0,0.00051781,120]
[407979083,1772959692225,-500.0,0.00051781,120]
[407979084,1772959692260,-500.0,0.00051781,120]
[407979085,1772959692296,-500.0,0.00051781,120]
[407979086,1772959692331,-500.0,0.00051781,120]
[407979087,1772959692366,-500.0,0.00051781,120]
[407979088,1772959692400,-500.0,0.00051781,120]
[407979089,1772959692435,-500.0,0.00051781,120]
[407979090,1772959692469,-500.0,0.00051781,120]
[407979091,1772959692504,-500.0,0.00051781,120]
[407979092,1772959692538,-500.0,0.00051781,120]
[407979093,1772959692574,-500.0,0.00051781,120]
[407979094,1772959692611,-500.0,0.00051781,120]
[407979095,1772959692644,-500.0,0.00051781,120]
[407979096,1772959692676,-500.0,0.00051781,120]
[407979097,1772959692711,-500.0,0.00051781,120]
[407979098,1772959692745,-500.0,0.00051781,120]
[407979099,1772959692779,-163.9,0.000519,30]
[407979100,1772959692814,-811688.57089305,0.00052,88]
[407979101,1772959692853,-1000000.0,0.00052,88]
[407979102,1772959692895,-2386.12813085,0.00052,30]
[407979103,1772959692928,-3924.70429653,0.00052,120]
[407979104,1772959692962,-15122.0,0.00052,120]
[407979105,1772959692997,-1000000.0,0.00052,42]
[407979106,1772959693030,-1000000.0,0.00052,42]
[407979107,1772959693064,-1000000.0,0.00052,44]
[407979108,1772959693098,-1000000.0,0.00052,44]
[407979109,1772959693132,-1000000.0,0.00052,44]
[407979110,1772959693165,-2603.74906151,0.00052,120]
[407979111,1772959693201,-10000.0,0.00052,30]
[407979112,1772959693238,-1000000.0,0.00052,80]
[407979113,1772959693275,-1000000.0,0.00052,81]
[407979114,1772959693310,-144216.24307617,0.00052,82]
[407979115,1772959747965,-169.04,0.00011595,2]
[407979116,1772959747992,-169.04,0.00011936,2]
[407979117,1772959748016,-169.04,0.00012277,2]
[407979118,1772959748042,-169.04,0.00012618,2]
[407979119,1772959748065,-222.47487,0.00012668,2]
[407979120,1772959748089,-169.04,0.00012959,2]
[407979121,1772959748112,-4059.83,0.00013168,2]
[407979122,1772959748136,-300.0,0.00013196,2]
[407979123,1772959748161,-1200.0,0.00013197,2]
[407979124,1772959748185,-1198.0,0.00013197,2]
[407979125,1772959748208,-19162.73,0.00013227,2]
[407979126,1772959748232,-190.4193,0.0001323,2]
[407979127,1772959748255,-200.0,0.0001325,2]
[407979128,1772959748279,-8176.55,0.0001333,2]
[407979129,1772959748303,-150.0,0.0001336,2]
[407979130,1772959748326,-17653.93,0.00013361,2]
[407979131,1772959748348,-150.99,0.00013361,2]
[407979132,1772959748371,-2160.9,0.00013361,2]
[407979133,1772959748394,-9999.99,0.00013361,2]
[407979134,1772959748416,-608.0,0.00013363,2]
[407979135,1772959748439,-770.0,0.00013363,2]
[407979136,1772959748465,-174.48,0.00013392,2]
[407979137,1772959748488,-1600.2,0.00013526,2]
[407979138,1772959748512,-189.44,0.00013699,2]
[407979139,1772959748536,-173.0,0.00013751,2]
[407979140,1772959748559,-776.0,0.00013807,2]
[407979141,1772959748581,-1600.2,0.00013864,2]
[407979142,1772959748607,-1348.0,0.00013944,2]
[407979143,1772959748631,-1033.0,0.00013972,2]
[407979144,1772959748656,-150.75,0.00014,2]
[407979145,1772959748678,-304.0,0.00014102,2]
[407979146,1772959748704,-1767.34,0.00014126,2]
[407979147,1772959748731,-200.0,0.00014187,2]
[407979148,1772959748755,-1600.2,0.00014202,2]
[407979149,1772959748777,-20951.4,0.00014221,2]
[407979150,1772959748801,-14884.65261943,0.00014222,2]
[407979151,1772959748824,-151.0,0.00014229,2]
[407979152,1772959748847,-151.0,0.00014229,2]
[407979153,1772959748869,-151.0,0.00014229,2]
[407979154,1772959748892,-151.0,0.00014229,2]
[407979155,1772959748919,-200.0,0.00014229,2]
[407979156,1772959748942,-151.0,0.00014229,2]
[407979157,1772959748965,-151.0,0.00014229,2]
[407979158,1772959748987,-151.0,0.00014229,2]
[407979159,1772959749009,-151.0,0.00014229,2]
[407979160,1772959749031,-151.0,0.00014229,2]
[407979161,1772959749053,-151.0,0.00014229,2]
[407979162,1772959749077,-151.0,0.00014229,2]
[407979163,1772959749100,-151.0,0.00014229,2]
[407979164,1772959749123,-151.0,0.00014229,2]
[407979165,1772959749149,-154.22309039,0.00014229,2]
[407979166,1772959749172,-500.0,0.0001423,2]
[407979167,1772959749194,-1004.88354371,0.00014237,2]
[407979168,1772959749216,-7792.10792578,0.00014238,2]
[407979169,1772959749238,-200.0,0.00014247,2]
[407979170,1772959749259,-500.0,0.00014319,2]
[407979171,1772959749281,-500.0,0.00014319,2]
[407979172,1772959749303,-500.0,0.00014319,2]
[407979173,1772959749325,-500.0,0.00014319,2]
[407979174,1772959749347,-500.0,0.00014319,2]
[407979175,1772959749371,-500.0,0.00014319,2]
[407979176,1772959749394,-500.0,0.00014319,2]
[407979177,1772959749550,-500.0,0.00014319,2]
[407979178,1772959749575,-500.0,0.00014319,2]
[407979179,1772959749597,-10128.1247593,0.00014322,2]
[407979180,1772959749619,-83721.9229025,0.00014322,2]
[407979181,1772959749642,-10360.899893,0.00014322,2]
[407979182,1772959749666,-3175.4823976,0.00014322,2]
[407979183,1772959749688,-1561.7248651,0.00014322,2]
[407979184,1772959749711,-500.0,0.00014323,2]
[407979185,1772959749739,-500.0,0.00014323,2]
[407979186,1772959749778,-500.0,0.00014323,2]
[407979187,1772959749805,-500.0,0.00014323,2]
[407979188,1772959749829,-500.0,0.00014323,2]
[407979189,1772959749856,-500.0,0.00014323,2]
[407979190,1772959749880,-522.2,0.00014323,2]
[407979191,1772959749904,-500.0,0.00014323,2]
[407979192,1772959749930,-500.0,0.00014323,2]
[407979193,1772959749955,-417.78031147,0.00014323,2]
[407979194,1772959749979,-699.96631265,0.00014338,2]
[407979195,1772959750002,-150.0,0.00014346,2]
[407979196,1772959750026,-1000.0,0.00014372,2]
[407979197,1772959750049,-500.0,0.00014373,2]
[407979198,1772959750073,-500.0,0.00014373,2]
[407979199,1772959750105,-504.26526581,0.00014373,2]
[407979200,1772959750127,-187.0,0.00014404,2]
[407979201,1772959750150,-1577.32,0.00014438,2]
[407979202,1772959750173,-250.0,0.00014459,2]
[407979203,1772959750200,-255.0,0.00014469,2]
[407979204,1772959750224,-420.0,0.00014469,2]
[407979205,1772959750247,-193.0,0.00014485,2]
[407979206,1772959750270,-250.0,0.00014485,2]
[407979207,1772959750292,-500.0,0.00014485,2]
[407979208,1772959750316,-5000.0,0.00014485,2]
[407979209,1772959750340,-600.0,0.00014485,2]
[407979210,1772959750364,-600.0,0.00014485,2]
[407979211,1772959750388,-600.0,0.00014485,2]
[407979212,1772959750412,-250.0,0.00014485,2]
[407979213,1772959750439,-1269.0,0.00014494,2]
[407979214,1772959750463,-529.76261764,0.000145,2]
[407979215,1772959750487,-500.0,0.00014516,2]
[407979216,1772959750511,-500.0,0.00014516,2]
[407979217,1772959750536,-500.0,0.00014516,2]
[407979218,1772959750565,-500.0,0.00014516,2]